bitfinex-derivatives/quotes_BTCF0:USTF0_20250402
["timestamp","ask_amount","ask_price","bid_price","bid_amount"]
[1743602510584,0.3608,85669.0,85661.0,0.00156]
[1743602510585,0.3608,85662.0,85661.0,0.00156]
[1743602510791,0.3608,85662.0,85633.0,0.09888]
[1743602511092,0.3608,85638.0,85633.0,0.00156]
[1743602511286,0.2615,85637.0,85633.0,0.00156]
[1743602512295,0.13476668,85636.0,85633.0,0.00156]
[1743602512784,0.6209,85635.0,85633.0,0.00156]
[1743602512991,0.6209,85635.0,85632.0,0.27222559]
[1743602513186,0.13476668,85634.0,85626.0,0.00017517]
[1743602513381,0.3608,85627.0,85626.0,0.00017517]
[1743602513885,0.63702648,85627.0,85601.0,0.00175219]
[1743602514081,0.3608,85620.0,85604.0,0.3608]
[1743602514277,0.2601,85619.0,85613.0,0.3608]
[1743602514589,0.1285,85619.0,85614.0,0.2546]
[1743602514792,0.1285,85619.0,85614.0,0.63624]
[1743602514988,0.3608,85620.0,85615.0,0.09888]
[1743602515183,0.3608,85617.0,85615.0,0.0016]
[1743602515384,0.1282,85616.0,85608.0,0.00017517]
[1743602515583,0.38302958,85616.0,85608.0,0.20017517]
[1743602515792,0.25482958,85616.0,85609.0,0.256]
[1743602515986,0.1282,85624.0,85609.0,0.84756]
[1743602516187,0.3608,85620.0,85610.0,0.31333529]
[1743602516389,0.3608,85620.0,85611.0,0.09876]
[1743602516693,0.3608,85620.0,85611.0,0.81032]
[1743602517389,0.1294,85619.0,85611.0,0.47156]
[1743602517696,0.2576,85619.0,85612.0,0.09852]
[1743602517886,0.2576,85619.0,85612.0,0.53008]
[1743602518385,0.00017517,85625.0,85612.0,0.53008]
[1743602518587,0.3608,85620.0,85612.0,0.00156]
[1743602518894,0.3608,85613.0,85612.0,0.00156]
[1743602519096,0.3608,85613.0,85608.0,0.00017517]
[1743602519295,0.2528,85612.0,85608.0,0.00017517]
[1743602520493,0.3608,85610.0,85608.0,0.00017517]
[1743602520687,0.2549,85609.0,85589.0,0.09816]
[1743602520886,0.3608,85602.0,85590.0,0.1212]
[1743602521188,0.2549,85609.0,85601.0,0.21175219]
[1743602521490,0.3608,85630.0,85608.0,0.3608]
[1743602521687,0.1249,85629.0,85615.0,0.67413529]
[1743602521884,0.1249,85629.0,85616.0,0.34534]
[1743602521885,0.2476,85629.0,85616.0,0.34534]
[1743602522093,0.3608,85653.0,85624.0,0.3608]
[1743602522299,0.3608,85653.0,85642.0,0.3608]
[1743602522592,0.2476,85652.0,85643.0,0.34542]
[1743602522799,0.3608,85645.0,85643.0,0.00156]
[1743602523100,0.2476,85644.0,85630.0,0.31333529]
[1743602523289,0.2476,85644.0,85635.0,0.00017517]
[1743602523490,0.3608,85636.0,85635.0,0.00173517]
[1743602523802,0.00017517,85653.0,85635.0,0.66097517]
[1743602524094,0.00017517,85653.0,85644.0,0.3608]
[1743602524299,0.00017517,85653.0,85652.0,0.3608]
[1743602524485,0.00017517,85653.0,85652.0,0.7908]
[1743602524687,0.00017517,85653.0,85652.0,0.79244]
[1743602524886,0.00017517,85653.0,85652.0,0.7908]
[1743602525794,0.00017517,85653.0,85652.0,0.39]
[1743602526008,0.00017517,85653.0,85652.0,0.38]
[1743602526199,0.3608,85678.0,85652.0,1.8326]
[1743602526499,0.3608,85678.0,85668.0,0.31333529]
[1743602526803,0.3608,85678.0,85669.0,0.22318]
[1743602526989,0.255,85691.0,85670.0,0.3608]
[1743602527296,0.3608,85693.0,85672.0,0.7216]
[1743602527494,0.0001748,85683.0,85672.0,1.4416]
[1743602528498,0.0001748,85683.0,85673.0,0.09796]
[1743602528689,0.0001748,85683.0,85673.0,0.86796]
[1743602529297,0.0001748,85683.0,85674.0,0.1311]
[1743602529602,0.0001748,85683.0,85674.0,0.4011]
[1743602529796,0.0001748,85683.0,85675.0,0.1222]
[1743602530097,0.0001748,85683.0,85675.0,0.92376]
[1743602530307,0.3608,85704.0,85685.0,0.31333529]
[1743602530490,0.3608,85704.0,85690.0,0.3608]
[1743602530686,0.3608,85704.0,85691.0,0.34596]
[1743602530893,0.3608,85704.0,85691.0,0.90752]
[1743602532602,0.3608,85697.0,85691.0,0.00156]
[1743602532807,0.3608,85692.0,85684.0,0.00017506]
[1743602532998,0.3608,85685.0,85659.0,0.3608]
[1743602533196,0.3608,85660.0,85659.0,0.00156]
[1743602534303,0.64527908,85660.0,85651.0,0.00017506]
[1743602534502,0.3608,85652.0,85626.0,0.09923167]
[1743602534706,0.31333529,85650.0,85634.0,0.27129011]
[1743602535000,0.7216,85635.0,85634.0,0.27129011]
[1743602535409,0.85491452,85635.0,85634.0,0.27129011]
[1743602535891,0.7216,85635.0,85634.0,0.27129011]
[1743602536096,0.3608,85642.0,85634.0,0.27129011]
[1743602536297,0.3608,85635.0,85634.0,0.27129011]
[1743602537004,0.3608,85637.0,85634.0,0.27129011]
[1743602537301,0.2497,85636.0,85626.0,0.00192683]
[1743602537706,0.13185237,85635.0,85626.0,0.00192683]
[1743602538004,0.3608,85627.0,85626.0,0.00192683]
[1743602538204,0.3608,85637.0,85626.0,0.36272683]
[1743602538407,0.3608,85685.0,85636.0,0.3608]
[1743602538703,0.1234,85669.0,85657.0,0.3608]
[1743602538896,0.249,85669.0,85658.0,0.22628]
[1743602539208,0.249,85669.0,85658.0,0.46628]
[1743602539403,0.249,85669.0,85658.0,0.82708]
[1743602539597,0.00017494,85672.0,85667.0,0.3608]
[1743602539796,0.00017494,85672.0,85668.0,0.1288]
[1743602539997,0.132,85671.0,85668.0,0.1294]
[1743602540193,0.13264,85671.0,85668.0,0.1294]
[1743602540396,0.00064,85671.0,85668.0,0.1794]
[1743602540591,0.00017494,85672.0,85668.0,0.1794]
[1743602541498,0.3608,85716.0,85669.0,0.3608]
[1743602541797,0.00100001,85695.0,85694.0,0.3608]
[1743602542105,0.13300001,85695.0,85694.0,0.3614]
[1743602542499,0.26523473,85695.0,85668.0,1.31125924]
[1743602542704,0.3608,85689.0,85686.0,0.00017504]
[1743602542903,0.1239,85688.0,85686.0,0.00017504]
[1743602543105,0.25689472,85688.0,85686.0,0.00017504]
[1743602543703,0.25689472,85688.0,85671.0,0.22482]
[1743602543906,0.25689472,85688.0,85671.0,0.22542]
[1743602544101,0.3608,85673.0,85671.0,0.0006]
[1743602544401,0.1239,85672.0,85646.0,0.3608]
[1743602544603,0.1239,85672.0,85646.0,0.36148]
[1743602544604,0.50616941,85672.0,85646.0,0.36148]
[1743602544800,0.50616941,85672.0,85662.0,0.3608]
[1743602544801,0.12466,85672.0,85662.0,0.3608]
[1743602545004,0.00017463,85668.0,85664.0,0.3608]
[1743602545210,0.00093463,85668.0,85664.0,0.3614]
[1743602545708,0.00093463,85668.0,85665.0,0.1233]
[1743602545906,0.00093463,85668.0,85665.0,0.12398]
[1743602548413,0.1297,85688.0,85680.0,0.1248]
[1743602548599,0.13054,85688.0,85680.0,0.34544]
[1743602548804,0.1262,85687.0,85680.0,0.12544]
[1743602549107,0.10696,85687.0,85680.0,0.00064]
[1743602549313,0.3608,85681.0,85680.0,0.00064]
[1743602549499,0.36164,85681.0,85675.0,0.00017504]
[1743602549705,0.1297,85680.0,85675.0,0.00017504]
[1743602550304,0.00084,85681.0,85675.0,0.36097504]
[1743602550503,0.00076,85680.0,85676.0,0.1248]
[1743602550704,0.1297,85687.0,85676.0,0.1248]
[1743602551107,0.1297,85687.0,85677.0,0.127]
[1743602551308,0.0004,85695.0,85683.0,0.3608]
[1743602551507,0.0004,85695.0,85693.0,0.3608]
[1743602551710,0.0004,85695.0,85694.0,0.2531]
[1743602551904,0.1289,85722.0,85694.0,0.2531]
[1743602551905,0.1205,85717.0,85694.0,0.4531]
[1743602552116,0.604,85717.0,85703.0,0.3608]
[1743602552314,0.2432,85717.0,85704.0,0.1234]
[1743602553110,0.2432,85717.0,85703.0,0.3608]
[1743602554626,0.3608,85709.0,85700.0,0.1234]
[1743602554809,0.2536,85708.0,85700.0,0.1234]
[1743602555414,0.3608,85757.0,85707.0,0.7216]
[1743602555615,0.1208,85767.0,85728.0,0.7216]
[1743602555822,0.23191343,85749.0,85738.0,0.3608]
[1743602556022,0.07124103,85749.0,85748.0,0.3608]
[1743602556319,0.07224103,85749.0,85748.0,0.45944]
[1743602556616,0.07224103,85749.0,85748.0,0.3618]
[1743602559326,0.07224103,85749.0,85748.0,0.66904]
[1743602559533,0.07224103,85749.0,85748.0,0.5718]
[1743602559820,0.07224103,85749.0,85748.0,0.459]
[1743602560028,0.0004,85759.0,85748.0,0.459]
[1743602560323,0.00172,85759.0,85758.0,0.3608]
[1743602560525,0.00172,85759.0,85758.0,0.3622]
[1743602561727,0.27839143,85759.0,85745.0,0.00017493]
[1743602561923,0.3608,85752.0,85735.0,0.3608]
[1743602562222,0.1278,85751.0,85743.0,0.3608]
[1743602562418,0.25535144,85751.0,85743.0,0.36168]
[1743602562622,0.12868001,85751.0,85750.0,0.3608]
[1743602562925,0.12868001,85751.0,85750.0,0.36172]
[1743602563518,0.00088001,85751.0,85750.0,0.36172]
[1743602563718,0.1273,85758.0,85750.0,0.36172]
[1743602563926,0.12818001,85758.0,85750.0,0.36172]
[1743602564115,0.26094616,85758.0,85750.0,0.36172]
[1743602565131,0.3608,85756.0,85750.0,0.00092]
[1743602565321,0.2534,85755.0,85743.0,0.3608]
[1743602565630,0.37793413,85755.0,85743.0,0.36168]
[1743602566213,0.25428001,85755.0,85754.0,0.3608]
[1743602566424,0.25428001,85755.0,85754.0,0.36168]
[1743602567426,0.25428001,85755.0,85754.0,0.00088]
[1743602567622,0.25428001,85755.0,85743.0,0.3608]
[1743602567930,0.3608,85744.0,85715.0,0.3608]
[1743602568232,0.2215,85743.0,85715.0,0.36144]
[1743602568430,0.3608,85736.0,85723.0,0.3608]
[1743602568733,0.1251,85735.0,85723.0,0.00068]
[1743602568927,0.24907995,85735.0,85723.0,0.00068]
[1743602569621,0.12570001,85735.0,85723.0,0.00068]
[1743602569930,0.12570001,85735.0,85723.0,0.12458]
[1743602570128,0.12570001,85735.0,85729.0,0.3608]
[1743602570323,0.12570001,85735.0,85729.0,0.3614]
[1743602570727,0.12570001,85735.0,85730.0,0.1239]
[1743602571016,0.12570001,85735.0,85730.0,0.0006]
[1743602571221,0.26359635,85734.0,85730.0,0.0006]
[1743602571422,0.26427635,85734.0,85730.0,0.0006]
[1743602571738,0.1208,85733.0,85730.0,0.0006]
[1743602571918,0.12152,85733.0,85730.0,0.0006]
[1743602572115,0.25704164,85732.0,85730.0,0.0006]
[1743602572329,0.25764165,85732.0,85730.0,0.0006]
[1743602572526,0.1312,85731.0,85730.0,0.0006]
[1743602572721,0.13188,85731.0,85730.0,0.0006]
[1743602572932,0.77555105,85731.0,85705.0,0.3608]
[1743602573227,0.3608,85706.0,85705.0,0.0006]
[1743602573529,0.3608,85715.0,85706.0,0.1213]
[1743602573717,0.00092,85715.0,85714.0,0.3608]
[1743602573923,0.3608,85727.0,85714.0,0.3614]
[1743602574116,0.3608,85727.0,85714.0,0.0006]
[1743602574117,0.3608,85720.0,85714.0,0.0006]
[1743602574431,0.3618,85720.0,85712.0,0.00017493]
[1743602574621,0.1312,85719.0,85712.0,0.00017493]
[1743602574926,0.3608,85713.0,85712.0,0.00017493]
[1743602575229,0.3618,85713.0,85712.0,0.00017493]
[1743602575428,0.49636788,85713.0,85693.0,0.1306]
[1743602575623,0.49636788,85713.0,85693.0,0.13128]
[1743602575624,0.3608,85699.0,85693.0,0.13128]
[1743602575830,0.3618,85699.0,85693.0,0.13128]
[1743602576130,0.001,85699.0,85693.0,0.13128]
[1743602576335,0.3608,85704.0,85693.0,0.32128]
[1743602576529,0.36172,85704.0,85694.0,0.0851]
[1743602576730,0.36172,85704.0,85694.0,0.08578]
[1743602577121,0.3608,85697.0,85694.0,0.00068]
[1743602577320,0.3608,85695.0,85694.0,0.00068]
[1743602577536,0.36176001,85695.0,85687.0,0.00017504]
[1743602577832,0.1253,85694.0,85687.0,0.00077504]
[1743602578132,0.12715852,85694.0,85687.0,0.00077504]
[1743602578434,0.00017504,85705.0,85691.0,0.3608]
[1743602578630,0.00017504,85705.0,85700.0,0.3608]
[1743602578937,0.00017504,85705.0,85701.0,0.208]
[1743602579231,0.00017504,85705.0,85701.0,0.22868]
[1743602580024,0.00017504,85705.0,85701.0,0.12348]
[1743602580231,0.00085504,85705.0,85701.0,0.12348]
[1743602580434,0.00085504,85705.0,85701.0,0.14348]
[1743602580636,0.3608,85723.0,85702.0,0.0852]
[1743602580835,0.2467,85722.0,85708.0,0.3608]
[1743602581129,0.24742,85722.0,85709.0,0.1228]
[1743602581335,0.3608,85750.0,85721.0,0.3608]
[1743602581637,0.00104001,85747.0,85730.0,0.3608]
[1743602581826,0.00017504,85743.0,85731.0,0.2137]
[1743602582021,0.00113505,85743.0,85731.0,0.23466]
[1743602582226,0.3608,85740.0,85732.0,0.09548]
[1743602582526,0.36184001,85740.0,85732.0,0.09644]
[1743602582734,0.2541,85739.0,85732.0,0.09644]
[1743602583038,0.25514001,85739.0,85732.0,0.00096]
[1743602583246,0.12364001,85739.0,85732.0,0.30096]
[1743602583531,0.00017504,85743.0,85732.0,0.30096]
[1743602583532,0.00017504,85743.0,85738.0,0.3608]
[1743602583734,0.00017504,85743.0,85739.0,0.2137]
[1743602583931,0.00017504,85743.0,85739.0,0.4847]
[1743602584132,0.1226,85765.0,85742.0,0.3608]
[1743602584431,0.1226,85765.0,85752.0,0.3608]
[1743602584632,0.60317781,85782.0,85752.0,1.20736]
[1743602584828,0.27775311,85771.0,85764.0,0.3608]
[1743602585039,0.00252001,85771.0,85765.0,0.2077]
[1743602585531,0.1199,85770.0,85765.0,0.2277]
[1743602585733,0.1199,85770.0,85765.0,0.12382]
[1743602585927,0.1199,85770.0,85765.0,0.1225]
[1743602586335,0.3608,85768.0,85765.0,0.1225]
[1743602586530,0.3608,85768.0,85759.0,0.09553493]
[1743602586733,0.1199,85767.0,85759.0,0.09553493]
[1743602587229,0.3608,85760.0,85759.0,0.00017493]
[1743602587737,0.4848907,85760.0,85745.0,0.1241]
[1743602587931,0.2505,85759.0,85745.0,0.1241]
[1743602588132,0.3745907,85759.0,85745.0,0.1241]
[1743602588533,0.3608,85753.0,85739.0,0.3608]
[1743602588736,0.3608,85753.0,85730.0,0.00862144]
[1743602588737,0.3608,85740.0,85734.0,0.1241]
[1743602589041,0.2505,85739.0,85737.0,0.00017493]
[1743602590647,0.25118,85739.0,85737.0,0.00017493]
[1743602590937,0.13073346,85738.0,85737.0,0.00017493]
[1743602591145,0.13141346,85738.0,85737.0,0.00017493]
[1743602591342,0.38211346,85738.0,85737.0,0.00017493]
[1743602592145,0.13141346,85738.0,85737.0,0.00017493]
[1743602592344,0.00060001,85738.0,85737.0,0.45689493]
[1743602592645,0.1294,85746.0,85737.0,0.45833493]
[1743602592843,0.13084,85746.0,85737.0,0.45833493]
[1743602593038,0.13084,85746.0,85738.0,0.2143]
[1743602593238,0.3608,85743.0,85738.0,0.13062]
[1743602593447,0.3608,85741.0,85738.0,0.13062]
[1743602593746,0.1294,85740.0,85738.0,0.13062]
[1743602593949,0.13084,85740.0,85738.0,0.13062]
[1743602594646,0.00144,85740.0,85738.0,0.13062]
[1743602594846,0.3608,85743.0,85738.0,0.13062]
[1743602595146,0.1231,85739.0,85738.0,0.13062]
[1743602595343,0.12454,85739.0,85738.0,0.13062]
[1743602595554,0.48534,85739.0,85738.0,0.00152]
[1743602595842,0.48534,85739.0,85737.0,0.00017493]
[1743602596036,0.128,85738.0,85737.0,0.00017493]
[1743602596233,0.12860001,85738.0,85737.0,0.00017493]
[1743602596848,0.12860001,85738.0,85737.0,0.00161493]
[1743602597535,0.12860001,85738.0,85737.0,0.00017493]
[1743602598451,0.12860001,85738.0,85700.0,0.31048749]
[1743602598746,0.12860001,85738.0,85709.0,0.124]
[1743602598747,0.3608,85724.0,85709.0,0.124]
[1743602598951,0.2507,85723.0,85709.0,0.12544]
[1743602599138,0.25214,85723.0,85709.0,0.12544]
[1743602599541,0.3608,85712.0,85709.0,0.00144]
[1743602599741,0.2555,85711.0,85709.0,0.00144]
[1743602599950,0.38252282,85711.0,85709.0,0.00144]
[1743602600139,0.38252282,85711.0,85707.0,0.00017493]
[1743602600446,0.38252282,85711.0,85704.0,0.27174315]
[1743602600653,0.3608,85705.0,85704.0,0.27174315]
[1743602600942,0.3608,85705.0,85704.0,0.27322315]
[1743602601448,0.48843654,85705.0,85696.0,0.33768613]
[1743602601744,0.3608,85697.0,85687.0,0.27196482]
[1743602601943,0.3608,85688.0,85687.0,0.27196482]
[1743602602348,0.49483408,85688.0,85687.0,0.27196482]
[1743602603053,0.62003408,85688.0,85687.0,0.27196482]
[1743602603350,1.18833408,85688.0,85668.0,0.03362]
[1743602603546,0.3608,85669.0,85668.0,0.03362]
[1743602604043,0.48255169,85669.0,85668.0,0.03362]
[1743602604752,0.48255169,85669.0,85660.0,0.54539579]
[1743602604947,0.1252,85668.0,85660.0,0.54539579]
[1743602605153,0.3608,85661.0,85660.0,0.366769]
[1743602605350,0.37618811,85661.0,85646.0,0.34418234]
[1743602605543,0.37618811,85661.0,85646.0,0.0006]
[1743602605544,0.7216,85647.0,85646.0,0.0006]
[1743602605760,0.72228,85647.0,85630.0,0.2553]
[1743602605952,0.3608,85635.0,85634.0,0.00235155]
[1743602606255,0.36156,85635.0,85634.0,0.00235155]
[1743602606960,0.49094675,85635.0,85634.0,0.00235155]
[1743602608248,0.58550675,85635.0,85634.0,0.00235155]
[1743602608451,0.58550675,85635.0,85634.0,0.00175155]
[1743602608652,0.73550675,85635.0,85634.0,0.00175155]
[1743602609546,0.49094675,85635.0,85634.0,0.00175155]
[1743602609745,0.58550675,85635.0,85634.0,0.00175155]
[1743602612547,0.58550675,85635.0,85611.0,0.05135744]
[1743602612752,0.3608,85616.0,85611.0,0.05195744]
[1743602613055,0.36156,85616.0,85612.0,0.1249]
[1743602613272,0.36156,85616.0,85612.0,0.1255]
[1743602613862,0.36156,85616.0,85611.0,0.05135744]
[1743602613863,0.36156,85616.0,85599.0,0.09456]
[1743602614160,0.36156,85616.0,85600.0,0.31048749]
[1743602614451,0.00017515,85632.0,85614.0,0.3608]
[1743602614653,0.00081515,85632.0,85622.0,0.31048749]
[1743602614858,0.00081515,85632.0,85622.0,0.02068]
[1743602615058,0.00081515,85632.0,85622.0,0.02]
[1743602615559,0.3608,85626.0,85615.0,0.0946]
[1743602615760,0.36148,85626.0,85616.0,0.1293]
[1743602616055,0.00017515,85632.0,85616.0,0.1899]
[1743602616251,0.3608,85627.0,85620.0,0.31048749]
[1743602616454,0.36152,85627.0,85620.0,0.24072]
[1743602616855,0.00072,85627.0,85620.0,0.24072]
[1743602617160,0.00017515,85632.0,85621.0,0.1289]
[1743602617458,0.00077516,85632.0,85621.0,0.32962]
[1743602617653,0.3608,85626.0,85621.0,0.32962]
[1743602617859,0.00076,85626.0,85622.0,0.1293]
[1743602618059,0.3608,85625.0,85623.0,0.1265]
[1743602618365,0.36152,85625.0,85624.0,0.1319]
[1743602618549,0.36152,85625.0,85623.0,0.10389557]
[1743602618859,0.36152,85625.0,85623.0,0.12449557]
[1743602619152,0.00072,85625.0,85623.0,0.12449557]
[1743602619350,0.00017515,85632.0,85624.0,0.124]
[1743602619551,0.00081515,85632.0,85624.0,0.1446]
[1743602619749,0.3608,85662.0,85630.0,0.3608]
[1743602619958,0.10498582,85659.0,85658.0,0.3608]
[1743602620259,0.31048749,85690.0,85658.0,1.03152]
[1743602620260,0.18108627,85676.0,85658.0,1.03152]
[1743602620463,0.24349782,85690.0,85675.0,0.3608]
[1743602620758,0.24349782,85690.0,85676.0,0.0946]
[1743602620960,0.24349782,85690.0,85676.0,0.3358]
[1743602621157,0.24237781,85690.0,85684.0,0.3608]
[1743602621362,0.24357782,85690.0,85684.0,0.602]
[1743602621551,0.24357782,85690.0,85684.0,0.612]
[1743602621756,0.24357782,85690.0,85685.0,0.2543]
[1743602621959,0.2765131,85697.0,85687.0,0.3608]
[1743602622151,0.2765131,85697.0,85696.0,0.3608]
[1743602622461,0.27763311,85697.0,85696.0,1.11648]
[1743602622763,0.1245,85714.0,85696.0,1.11648]
[1743602622947,0.31567204,85704.0,85703.0,0.3608]
[1743602623147,0.3608,85741.0,85703.0,0.89228]
[1743602623355,0.1314,85737.0,85710.0,0.3608]
[1743602623556,0.3608,85752.0,85724.0,0.3608]
[1743602623760,0.3608,85738.0,85730.0,0.31048749]
[1743602623948,0.37735124,85751.0,85730.0,0.40648]
[1743602624154,0.3608,85735.0,85730.0,0.40648]
[1743602624353,0.133,85734.0,85731.0,0.1258]
[1743602624561,0.133,85734.0,85731.0,0.1278]
[1743602624762,0.3608,85732.0,85724.0,0.00017505]
[1743602625060,0.2595,85731.0,85724.0,0.10017505]
[1743602625254,0.3608,85725.0,85724.0,0.10017505]
[1743602625564,0.36140001,85725.0,85724.0,0.10017505]
[1743602627165,0.36140001,85725.0,85724.0,0.00017505]
[1743602630757,0.49309783,85725.0,85724.0,0.00017505]
[1743602631469,0.49309783,85725.0,85710.0,0.131]
[1743602631668,0.3608,85711.0,85710.0,0.301]
[1743602631970,0.36140001,85711.0,85710.0,0.23236]
[1743602632849,0.36140001,85711.0,85710.0,0.10136]
[1743602633051,0.36140001,85711.0,85710.0,0.1]
[1743602633658,0.00017505,85719.0,85710.0,0.47]
[1743602633967,0.00017505,85719.0,85711.0,0.2408]
[1743602634262,0.00017505,85719.0,85713.0,0.3608]
[1743602634454,0.3608,85725.0,85713.0,1.00232]
[1743602634652,0.3608,85738.0,85722.0,0.3608]
[1743602634856,0.3608,85745.0,85736.0,0.3608]
[1743602635057,0.3608,85745.0,85737.0,0.1209]
[1743602635256,0.3608,85745.0,85737.0,0.34242]
[1743602635556,0.1329,85755.0,85738.0,0.09452]
[1743602635770,0.00017505,85750.0,85740.0,0.31048749]
[1743602635961,0.12574073,85754.0,85747.0,0.3608]
[1743602636261,0.2584,85764.0,85748.0,0.1255]
[1743602636464,0.2584,85764.0,85758.0,0.3608]
[1743602636660,0.12574073,85763.0,85758.0,0.00156]
[1743602636966,0.12574073,85763.0,85747.0,0.3608]
[1743602637164,0.2592,85762.0,85752.0,0.00017494]
[1743602637472,0.3608,85754.0,85752.0,0.00169494]
[1743602637659,0.2592,85753.0,85752.0,0.00017494]
[1743602637864,0.38838169,85753.0,85752.0,0.00017494]
[1743602638263,0.2592,85753.0,85752.0,0.00017494]
[1743602638569,0.38838169,85753.0,85752.0,0.00017494]
[1743602639063,0.38838169,85753.0,85738.0,0.3608]
[1743602639364,0.3608,85746.0,85738.0,0.52232]
[1743602639561,0.2618,85745.0,85738.0,0.62232]
[1743602639762,0.39226463,85745.0,85739.0,0.2514]
[1743602640070,0.13046463,85745.0,85744.0,0.3608]
[1743602640372,0.00017494,85751.0,85744.0,0.40232]
[1743602640560,0.00017494,85751.0,85744.0,0.42232]
[1743602641272,0.00017494,85751.0,85750.0,0.3608]
[1743602641571,0.3608,85795.0,85750.0,1.1124]
[1743602641759,0.3608,85795.0,85774.0,0.3608]
[1743602641966,0.2618,85794.0,85784.0,0.3608]
[1743602642160,0.2618,85794.0,85785.0,0.2514]
[1743602642362,0.2618,85794.0,85785.0,0.58292]
[1743602643171,0.0004,85807.0,85786.0,0.17498102]
[1743602643363,0.3608,85827.0,85806.0,0.3608]
[1743602643563,0.3608,85818.0,85807.0,0.09448]
[1743602643869,0.3608,85808.0,85774.0,0.3608]
[1743602644070,0.2432,85807.0,85785.0,0.66636]
[1743602644271,0.00017483,85805.0,85788.0,0.00017483]
[1743602644466,0.00121484,85805.0,85788.0,0.21232034]
[1743602644774,0.3608,85791.0,85772.0,0.09448]
[1743602645064,0.121,85790.0,85774.0,0.36152]
[1743602645256,0.3608,85788.0,85774.0,0.00072]
[1743602645460,0.246,85787.0,85766.0,0.1299]
[1743602645679,0.37793984,85787.0,85766.0,0.1307]
[1743602645968,0.37793984,85787.0,85766.0,0.0008]
[1743602645969,0.3608,85780.0,85766.0,0.0008]
[1743602646274,0.2568,85779.0,85768.0,0.00017483]
[1743602646460,0.38693167,85779.0,85768.0,0.00089483]
[1743602646655,0.25752,85779.0,85768.0,0.00089483]
[1743602647072,0.25752,85779.0,85773.0,0.3608]
[1743602647272,0.2576,85779.0,85774.0,0.34214]
[1743602647572,0.0008,85779.0,85774.0,0.99366]
[1743602647771,0.00017483,85785.0,85774.0,0.90366]
[1743602647962,0.00017483,85785.0,85784.0,0.3608]
[1743602648272,0.00089483,85785.0,85784.0,0.36152]
[1743602648470,0.00089483,85785.0,85784.0,0.35152]
[1743602648676,0.12429483,85785.0,85784.0,0.35152]
[1743602649165,0.00153483,85785.0,85784.0,0.35152]
[1743602649365,0.00081483,85785.0,85784.0,0.35152]
[1743602649666,0.00089483,85785.0,85784.0,0.44596]
[1743602649866,0.1248,85817.0,85784.0,0.90596]
[1743602650165,0.2482,85809.0,85808.0,0.3608]
[1743602650369,0.00072,85810.0,85808.0,0.45524]
[1743602650570,0.2482,85830.0,85808.0,0.656]
[1743602650776,0.2482,85822.0,85810.0,0.31048749]
[1743602650967,8e-05,85814.0,85810.0,0.00104]
[1743602651379,8e-05,85814.0,85810.0,0.09548]
[1743602651566,8e-05,85814.0,85810.0,0.00104]
[1743602651874,0.00104001,85814.0,85810.0,0.00104]
[1743602652075,0.2433,85813.0,85810.0,0.00104]
[1743602652377,0.24394,85813.0,85810.0,0.3608]
[1743602652672,0.24394,85813.0,85810.0,0.36176]
[1743602653171,0.24394,85813.0,85811.0,0.1235]
[1743602653581,0.24394,85813.0,85811.0,0.12454]
[1743602654073,0.00064,85813.0,85811.0,0.00104]
[1743602654278,0.1231,85815.0,85803.0,0.36097483]
[1743602654575,0.124,85814.0,85803.0,0.36193483]
[1743602654773,0.3608,85805.0,85784.0,0.3608]
[1743602654973,0.124,85804.0,85784.0,0.36148]
[1743602655166,0.38237979,85804.0,85791.0,0.3608]
[1743602655477,0.25428,85804.0,85791.0,0.36148]
[1743602655678,0.25428,85804.0,85792.0,0.13]
[1743602655879,0.25428,85804.0,85792.0,0.13068]
[1743602656562,0.25428,85804.0,85792.0,0.00068]
[1743602656768,0.12658206,85803.0,85792.0,0.00068]
[1743602656976,0.12734206,85803.0,85792.0,0.00068]
[1743602657171,0.2536,85802.0,85792.0,0.00068]
[1743602657381,0.25428,85802.0,85792.0,0.00068]
[1743602657873,0.00068,85802.0,85801.0,0.3608]
[1743602658065,8e-05,85804.0,85801.0,0.36148]
[1743602658668,8e-05,85804.0,85802.0,0.1253]
[1743602658876,0.00017483,85807.0,85802.0,0.12598]
[1743602659178,0.00097483,85807.0,85802.0,0.12598]
[1743602659978,0.00097483,85807.0,85802.0,0.00068]
[1743602660675,8e-05,85818.0,85803.0,0.0944]
[1743602660881,0.0004,85823.0,85817.0,0.3608]
[1743602661177,8e-05,85821.0,85817.0,0.45608]
[1743602661371,0.00096001,85821.0,85818.0,0.0944]
[1743602661679,0.00104001,85821.0,85818.0,0.09536]
[1743602661872,0.25386001,85821.0,85818.0,0.09536]
[1743602662067,0.25386001,85821.0,85818.0,0.22326]
[1743602662573,0.25386001,85821.0,85818.0,0.09536]
[1743602662885,0.25386001,85821.0,85811.0,0.00017483]
[1743602662886,0.13346649,85820.0,85811.0,0.00017483]
[1743602663072,0.13410649,85820.0,85811.0,0.00017483]
[1743602663270,0.2529,85819.0,85815.0,0.3608]
[1743602663471,0.25350001,85819.0,85815.0,0.3614]
[1743602664475,0.25350001,85819.0,85815.0,0.0006]
[1743602664676,0.25350001,85819.0,85811.0,0.00017483]
[1743602664973,0.25350001,85819.0,85811.0,0.00077483]
[1743602665175,0.25350001,85819.0,85815.0,0.3608]
[1743602665377,0.25350001,85819.0,85815.0,0.3614]
[1743602666780,0.25350001,85819.0,85816.0,0.1243]
[1743602666981,0.25350001,85819.0,85816.0,0.25068]
[1743602667284,0.00060001,85819.0,85816.0,0.00068]
[1743602667488,0.1258,85818.0,85816.0,0.00068]
[1743602667689,0.1264,85817.0,85816.0,0.00068]
[1743602667991,0.00064,85817.0,85816.0,0.00068]
[1743602668182,8e-05,85822.0,85816.0,0.25068]
[1743602668380,0.00060001,85822.0,85816.0,0.25068]
[1743602668779,0.25280001,85822.0,85816.0,0.25068]
[1743602668980,0.25280001,85822.0,85816.0,0.12498]
[1743602669181,0.25280001,85822.0,85816.0,0.00068]
[1743602669975,0.3608,85819.0,85816.0,0.00068]